bitfinex/quotes_BTCUSD_20240918
["timestamp","ask_amount","ask_price","bid_price","bid_amount"]
[1726645989782,0.12492063,60571.0,60570.0,1.81680209]
[1726645992823,0.12492063,60571.0,60570.0,1.81681673]
[1726645993557,0.099023,60571.0,60570.0,1.81681673]
[1726645994025,0.099023,60571.0,60570.0,1.71775224]
[1726645996123,0.099023,60571.0,60570.0,1.84158286]
[1726645996351,0.12492127,60571.0,60570.0,1.84158286]
[1726645996817,0.12492127,60571.0,60570.0,1.82343914]
[1726645997068,0.12492127,60571.0,60570.0,1.8415641]
[1726645997961,0.12492127,60571.0,60570.0,1.84159008]
[1726645998191,0.099023,60571.0,60570.0,1.84159008]
[1726645999634,0.099023,60571.0,60570.0,1.84160714]
[1726646001510,0.12492122,60571.0,60570.0,1.84160714]
[1726646003378,0.099023,60571.0,60570.0,1.84160714]
[1726646004511,0.003823,60571.0,60570.0,1.71773348]
[1726646006399,0.02972075,60571.0,60570.0,1.71773348]
[1726646008552,0.02972075,60571.0,60570.0,1.75080794]
[1726646009233,0.02972075,60571.0,60570.0,1.71773348]
[1726646009488,0.02972075,60571.0,60570.0,1.75081108]
[1726646013082,0.02972075,60571.0,60570.0,1.71773348]
[1726646013326,0.003823,60571.0,60570.0,1.71773348]
[1726646016795,0.02972089,60571.0,60570.0,1.71773348]
[1726646020841,0.02972089,60571.0,60570.0,1.69960852]
[1726646021102,0.02972089,60571.0,60570.0,1.69730927]
[1726646021328,0.02972089,60571.0,60570.0,1.71798279]
[1726646023359,0.003823,60571.0,60570.0,1.71798279]
[1726646024777,0.003823,60571.0,60570.0,1.38778679]
[1726646025627,0.095223,60571.0,60570.0,0.89453712]
[1726646025856,0.095223,60571.0,60570.0,1.01852729]
[1726646026366,0.095223,60571.0,60570.0,0.89493312]
[1726646026559,0.12112238,60571.0,60570.0,0.89493312]
[1726646027722,0.12112238,60571.0,60570.0,0.87389707]
[1726646028156,0.12112238,60571.0,60570.0,0.89457177]
[1726646031027,0.12112238,60571.0,60570.0,0.87389471]
[1726646031310,0.12112238,60571.0,60570.0,0.89456942]
[1726646031534,0.12012238,60571.0,60570.0,0.89456942]
[1726646031774,0.12212238,60571.0,60570.0,0.89456942]
[1726646031977,0.12212238,60571.0,60570.0,1.22476542]
[1726646032231,0.12212238,60571.0,60570.0,0.99374358]
[1726646032909,0.12612238,60571.0,60570.0,0.99374358]
[1726646033123,0.12612238,60571.0,60570.0,1.32393958]
[1726646033327,0.100223,60571.0,60570.0,1.32393958]
[1726646034641,0.100223,60571.0,60570.0,1.32394361]
[1726646036251,0.008823,60571.0,60570.0,1.22476945]
[1726646036723,0.008823,60571.0,60570.0,1.33032841]
[1726646037194,0.008823,60571.0,60570.0,1.34912606]
[1726646037430,0.004823,60571.0,60570.0,1.34912606]
[1726646037892,0.002823,60571.0,60570.0,1.34912606]
[1726646038133,0.02872195,60571.0,60570.0,1.34910558]
[1726646038330,0.02972195,60571.0,60570.0,1.20446317]
[1726646038586,0.02972195,60571.0,60570.0,1.22513767]
[1726646039281,0.02972195,60571.0,60570.0,1.71838734]
[1726646039524,0.003823,60571.0,60570.0,1.53695258]
[1726646039768,0.003823,60571.0,60570.0,1.71838734]
[1726646040981,0.003823,60571.0,60570.0,1.69961017]
[1726646041215,0.003823,60571.0,60570.0,1.69765469]
[1726646041701,0.003823,60571.0,60570.0,1.71832614]
[1726646041948,0.02972052,60571.0,60570.0,1.71832614]
[1726646043445,0.003823,60571.0,60570.0,1.71832614]
[1726646043921,0.003823,60571.0,60570.0,1.69960712]
[1726646044183,0.003823,60571.0,60570.0,1.71830526]
[1726646047418,0.003823,60571.0,60570.0,1.69763792]
[1726646047642,0.02972058,60571.0,60570.0,1.71830934]
[1726646048553,0.02972058,60571.0,60570.0,1.86692887]
[1726646049246,0.02972058,60571.0,60570.0,1.89684272]
[1726646049919,0.003823,60571.0,60570.0,1.89684272]
[1726646050860,0.003823,60571.0,60570.0,1.8761713]
[1726646051127,0.003823,60571.0,60570.0,1.89684282]
[1726646051345,0.003823,60571.0,60570.0,1.89681917]
[1726646051580,0.003823,60571.0,60570.0,1.53774919]
[1726646052016,0.003823,60571.0,60570.0,1.86794519]
[1726646052237,0.003823,60571.0,60570.0,1.43867518]
[1726646052455,0.003823,60571.0,60570.0,1.6615891]
[1726646052675,0.003823,60571.0,60570.0,1.9917851]
[1726646052938,0.02972058,60571.0,60570.0,1.9917851]
[1726646053170,0.02972058,60571.0,60570.0,1.94121051]
[1726646053849,0.003823,60571.0,60570.0,1.94121051]
[1726646054331,0.003823,60571.0,60570.0,1.92252111]
[1726646054579,0.003823,60571.0,60570.0,1.51195172]
[1726646054807,0.003823,60571.0,60570.0,1.61102573]
[1726646055027,0.003823,60571.0,60570.0,1.94122173]
[1726646055251,0.003823,60571.0,60570.0,2.02384173]
[1726646056198,0.003823,60571.0,60570.0,1.30767814]
[1726646056199,0.094323,60571.0,60570.0,1.30767814]
[1726646056429,0.094323,60571.0,60570.0,1.40675103]
[1726646056649,0.094323,60571.0,60570.0,1.30767814]
[1726646056878,0.12022163,60571.0,60570.0,1.30767814]
[1726646057599,0.11822163,60571.0,60570.0,1.30767814]
[1726646057845,0.11822163,60571.0,60570.0,1.28700662]
[1726646058091,0.12222163,60571.0,60570.0,1.28700662]
[1726646058333,0.12122163,60571.0,60570.0,1.28700662]
[1726646058557,0.11722163,60571.0,60570.0,1.28700662]
[1726646058783,0.12422163,60571.0,60570.0,1.268306]
[1726646059013,0.12422163,60571.0,60570.0,1.28689845]
[1726646060324,0.12422163,60571.0,60570.0,1.38597246]
[1726646060549,0.03372163,60571.0,60570.0,1.38597246]
[1726646061460,0.03072163,60571.0,60570.0,1.38597246]
[1726646062027,0.02972163,60571.0,60570.0,1.38597246]
[1726646062245,0.03372163,60571.0,60570.0,1.38597246]
[1726646062700,0.03372163,60571.0,60570.0,1.48504535]
[1726646063165,0.03072163,60571.0,60570.0,1.48504535]
[1726646063382,0.005823,60571.0,60570.0,1.48504535]
[1726646063866,0.001823,60571.0,60570.0,1.48504535]
[1726646064108,0.003823,60571.0,60570.0,1.48504535]
[1726646064339,0.003823,60571.0,60570.0,1.38597246]
[1726646064582,0.003823,60571.0,60570.0,1.48504535]
[1726646065263,0.003823,60571.0,60570.0,1.38597246]
[1726646065497,0.003823,60571.0,60570.0,1.48504535]
[1726646066228,0.003823,60571.0,60570.0,1.38597246]
[1726646066696,0.003823,60571.0,60570.0,1.48504535]
[1726646067382,0.003823,60571.0,60570.0,1.38597246]
[1726646067607,0.003823,60571.0,60570.0,1.41584423]
[1726646067836,0.003823,60571.0,60570.0,1.48504316]
[1726646068079,0.02972163,60571.0,60570.0,1.48510711]
[1726646068306,0.02972163,60571.0,60570.0,1.38603641]
[1726646069704,0.02672163,60571.0,60570.0,1.38603641]
[1726646070136,0.02772163,60571.0,60570.0,1.38603641]
[1726646070644,0.001823,60571.0,60570.0,1.38603641]
[1726646071094,0.003823,60571.0,60570.0,1.38603641]
[1726646071351,0.095823,60571.0,60570.0,0.98764507]
[1726646071569,0.093823,60571.0,60570.0,0.93811]
[1726646071814,0.095823,60571.0,60570.0,0.93811]
[1726646072055,0.095823,60571.0,60570.0,0.577914]
[1726646072290,0.092823,60571.0,60570.0,0.90811]
[1726646072768,0.095823,60571.0,60570.0,0.90811]
[1726646072993,0.095823,60571.0,60570.0,0.247718]
[1726646073224,0.096823,60571.0,60570.0,0.247718]
[1726646073463,0.096823,60571.0,60570.0,0.08262]
[1726646073464,0.119823,60571.0,60570.0,0.08262]
[1726646073699,0.117823,60571.0,60570.0,0.08262]
[1726646073932,0.127823,60571.0,60570.0,0.08362]
[1726646074164,0.117823,60571.0,60570.0,0.08262]
[1726646075358,0.115823,60571.0,60570.0,0.08262]
[1726646075588,0.126823,60571.0,60570.0,0.08262]
[1726646076044,0.115823,60571.0,60570.0,0.08262]
[1726646076269,0.138823,60571.0,60570.0,0.08362]
[1726646076961,0.149823,60571.0,60570.0,0.08462]
[1726646078196,0.149823,60571.0,60570.0,0.249718]
[1726646079575,0.149823,60571.0,60570.0,0.08462]
[1726646081235,0.1757236,60571.0,60570.0,0.08462]
[1726646083406,0.149823,60571.0,60570.0,0.08462]
[1726646083898,0.149823,60571.0,60570.0,0.249718]
[1726646085149,0.126823,60571.0,60570.0,0.579914]
[1726646090050,0.034823,60571.0,60570.0,1.270306]
[1726646090504,0.034823,60571.0,60570.0,1.28897922]
[1726646090726,0.06072272,60571.0,60570.0,1.28897922]
[1726646090949,0.06072272,60571.0,60570.0,1.270306]
[1726646091438,0.06072272,60571.0,60570.0,0.94011]
[1726646093498,0.034823,60571.0,60570.0,0.94011]
[1726646095370,0.034823,60571.0,60570.0,0.95867868]
[1726646097976,0.034823,60571.0,60570.0,0.94011]
[1726646098207,0.06072275,60571.0,60570.0,0.95866847]
[1726646099356,0.06072275,60571.0,60570.0,0.95867193]
[1726646099571,0.06072275,60571.0,60570.0,1.00819531]
[1726646100543,0.06072275,60571.0,60570.0,1.33839131]
[1726646100784,0.06072275,60571.0,60570.0,1.28886793]
[1726646101007,0.06072275,60571.0,60570.0,1.41763396]
[1726646101289,0.034823,60571.0,60570.0,1.44240079]
[1726646101781,0.034823,60571.0,60570.0,1.270306]
[1726646102032,0.034823,60571.0,60570.0,1.31857654]
[1726646103435,0.034823,60571.0,60570.0,1.44239265]
[1726646104412,0.034823,60571.0,60570.0,1.28887159]
[1726646104871,0.034823,60571.0,60570.0,1.3631641]
[1726646105091,0.034823,60571.0,60570.0,1.36317421]
[1726646105546,0.034823,60571.0,60570.0,1.41269781]
[1726646105802,0.034823,60571.0,60570.0,1.3879361]
[1726646106018,0.034823,60571.0,60570.0,1.41269781]
[1726646106240,0.034823,60571.0,60570.0,1.2888817]
[1726646107859,0.034823,60571.0,60570.0,1.39412211]
[1726646108095,0.034823,60571.0,60570.0,1.41268187]
[1726646108306,0.034823,60571.0,60570.0,1.28886576]
[1726646108579,0.034823,60571.0,60570.0,1.28886394]
[1726646109039,0.06072118,60571.0,60570.0,1.28886394]
[1726646109952,0.06072118,60571.0,60570.0,1.38790844]
[1726646111618,0.06072118,60571.0,60570.0,1.40858187]
[1726646112836,0.06072118,60571.0,60570.0,1.30953737]
[1726646113078,0.06072118,60571.0,60570.0,1.40857554]
[1726646113553,0.034823,60571.0,60570.0,1.40857554]
[1726646113985,0.034823,60571.0,60570.0,1.43335348]
[1726646114497,0.034823,60571.0,60570.0,1.40857144]
[1726646115450,0.034823,60571.0,60570.0,1.47259104]
[1726646115710,0.034823,60571.0,60570.0,1.6891179]
[1726646115980,0.034823,60571.0,60570.0,2.01931344]
[1726646116450,0.034823,60571.0,60570.0,1.89549733]
[1726646116897,0.034823,60571.0,60570.0,2.14409826]
[1726646117352,0.034823,60571.0,60570.0,2.14399519]
[1726646118087,0.06072029,60571.0,60570.0,1.99549733]
[1726646118597,0.06072029,60571.0,60570.0,2.00515998]
[1726646119068,0.06072029,60571.0,60570.0,1.98453566]
[1726646119286,0.06072029,60571.0,60570.0,2.00520653]
[1726646122297,0.06072029,60571.0,60570.0,1.98454375]
[1726646122514,0.06072029,60571.0,60570.0,2.00521496]
[1726646123189,0.034823,60571.0,60570.0,2.00521496]
[1726646126853,0.000823,60571.0,60570.0,2.00321496]
[1726646127275,0.000823,60571.0,60570.0,2.04003796]
[1726646127904,0.000823,60571.0,60570.0,2.04303796]
[1726646128756,0.000823,60571.0,60570.0,2.02441253]
[1726646128938,0.000823,60571.0,60570.0,2.02234964]
[1726646129342,0.000823,60571.0,60570.0,2.04302048]
[1726646130415,0.000823,60571.0,60570.0,2.40321648]
[1726646130965,0.000823,60571.0,60570.0,2.5516447]
[1726646132021,0.02671942,60571.0,60570.0,2.53303638]
[1726646132254,0.02671942,60571.0,60570.0,2.53097479]
[1726646132483,0.02671942,60571.0,60570.0,2.55164525]
[1726646132717,0.02671942,60571.0,60570.0,2.22144925]
[1726646132939,0.02671942,60571.0,60570.0,2.07302103]
[1726646133164,0.02671942,60571.0,60570.0,2.04302103]
[1726646133394,0.000823,60571.0,60570.0,2.14209504]
[1726646136466,0.02671973,60571.0,60570.0,2.14209504]
[1726646138524,0.02671973,60571.0,60570.0,2.14208999]
[1726646139149,0.02671973,60571.0,60570.0,2.12141848]
[1726646139348,0.02671973,60571.0,60570.0,2.14208979]
[1726646141877,0.02671973,60571.0,60570.0,2.12348664]
[1726646142113,0.000823,60571.0,60570.0,2.12348664]
[1726646142346,0.000823,60571.0,60570.0,2.14208644]
[1726646144441,0.000823,60571.0,60570.0,2.29059759]
[1726646144668,0.000823,60571.0,60570.0,2.29066654]
[1726646145133,0.000823,60571.0,60570.0,2.28887014]
[1726646145330,0.02671973,60571.0,60570.0,2.28887014]
[1726646145563,0.000823,60571.0,60570.0,2.05946644]
[1726646147982,0.000822,60584.0,60570.0,2.05946644]
[1726646148221,0.000822,60584.0,60583.0,1.71463601]
[1726646148456,0.000822,60584.0,60583.0,2.33041468]
[1726646148684,0.000822,60584.0,60583.0,2.34902507]
[1726646149466,0.000822,60584.0,60583.0,2.40475844]
[1726646149923,0.03871247,60584.0,60583.0,2.48557844]
[1726646150155,0.03871247,60584.0,60583.0,2.48857844]
[1726646150384,0.03871247,60584.0,60583.0,2.48557844]
[1726646150385,0.02671247,60584.0,60583.0,2.48557844]
[1726646150617,0.02671247,60584.0,60583.0,2.49257844]
[1726646150618,0.02771247,60584.0,60583.0,2.49257844]
[1726646150863,0.02871247,60584.0,60583.0,2.57967844]
[1726646152239,0.02871247,60584.0,60583.0,2.58940582]
[1726646153375,0.002822,60584.0,60583.0,2.58940582]
[1726646154289,0.002822,60584.0,60583.0,2.73770338]
[1726646155042,0.002822,60584.0,60583.0,2.68393162]
[1726646155282,0.002822,60584.0,60583.0,2.73766148]
[1726646156241,0.002822,60584.0,60583.0,3.06778648]
[1726646157437,0.002822,60584.0,60583.0,3.04921448]
[1726646157901,0.02871257,60584.0,60583.0,2.99548462]
[1726646158367,0.02871257,60584.0,60583.0,2.87590006]
[1726646158620,0.02871257,60584.0,60583.0,2.7435032]
[1726646158853,0.02871257,60584.0,60583.0,2.72492992]
[1726646159083,0.02871257,60584.0,60583.0,2.7786598]
[1726646159309,0.02871257,60584.0,60583.0,2.72492992]
[1726646160472,0.02871257,60584.0,60583.0,2.74350325]
[1726646160716,0.02871257,60584.0,60583.0,2.76416865]
[1726646161002,0.02871257,60584.0,60583.0,2.43404365]
[1726646162912,0.02871257,60584.0,60583.0,2.41337825]
[1726646163157,0.12361257,60584.0,60583.0,1.84573886]
[1726646163406,0.097722,60584.0,60583.0,1.84573886]
[1726646163666,0.097722,60584.0,60583.0,1.792009]
[1726646163896,0.096722,60584.0,60583.0,1.785009]
[1726646164166,0.095722,60584.0,60583.0,1.778009]
[1726646164405,0.097722,60584.0,60583.0,1.778009]
[1726646164635,0.095722,60584.0,60583.0,1.778009]
[1726646164868,0.097722,60584.0,60583.0,1.778009]
[1726646165335,0.097722,60584.0,60583.0,1.782009]
[1726646165806,0.097722,60584.0,60583.0,1.778009]
[1726646166041,0.097722,60584.0,60583.0,1.28483033]
[1726646167454,0.097722,60584.0,60583.0,1.38390434]
[1726646168173,0.12361568,60584.0,60583.0,1.38390434]
[1726646173001,0.12361568,60584.0,60583.0,1.28483033]
[1726646173476,0.097722,60584.0,60583.0,1.28483033]
[1726646173730,0.097722,60584.0,60583.0,1.266257]
[1726646173992,0.097722,60584.0,60583.0,1.36533101]
[1726646176370,0.002822,60584.0,60583.0,1.36533101]
[1726646177984,0.02871531,60584.0,60583.0,1.36533101]
[1726646180510,0.02871531,60584.0,60583.0,1.266257]
[1726646180745,0.11921531,60584.0,60583.0,1.266257]
[1726646183584,0.093322,60584.0,60583.0,1.266257]
[1726646185167,0.093322,60584.0,60583.0,1.36533101]
[1726646185635,0.002822,60584.0,60583.0,1.36533101]
[1726646188028,0.0287152,60584.0,60583.0,1.36533101]
[1726646193405,0.002822,60584.0,60583.0,1.36533101]
[1726646196859,0.02871493,60584.0,60583.0,1.36533101]
[1726646199598,0.02871493,60584.0,60583.0,1.52838468]
[1726646200266,0.02871493,60584.0,60583.0,1.57786259]
[1726646201202,0.02871493,60584.0,60583.0,1.90798759]
[1726646201421,0.02871493,60584.0,60583.0,1.57786259]
[1726646203154,0.02871493,60584.0,60583.0,1.90798759]
[1726646203393,0.002822,60584.0,60583.0,1.85850968]
[1726646203639,0.002822,60584.0,60583.0,1.52838468]
[1726646204353,0.002822,60584.0,60583.0,1.60260155]
[1726646205284,0.002822,60584.0,60583.0,1.52838468]
[1726646206637,0.002822,60584.0,60583.0,1.85850968]
[1726646206863,0.02871522,60584.0,60583.0,1.85850968]
[1726646207805,0.02871522,60584.0,60583.0,1.95746551]
[1726646208733,0.02871522,60584.0,60583.0,1.65207947]
[1726646210504,0.02871522,60584.0,60583.0,1.85850968]
[1726646210968,0.02671522,60584.0,60583.0,1.85850968]
[1726646211554,0.02671522,60584.0,60583.0,1.52838468]
[1726646211728,0.02971522,60584.0,60583.0,1.52838468]
[1726646212154,0.03171522,60584.0,60583.0,1.52838468]
[1726646212571,0.02871522,60584.0,60583.0,1.52838468]
[1726646212783,0.03271522,60584.0,60583.0,1.52838468]
[1726646213190,0.03071522,60584.0,60583.0,1.52838468]
[1726646213393,0.004822,60584.0,60583.0,1.52838468]
[1726646213602,0.002822,60584.0,60583.0,1.52838468]
[1726646214012,0.006822,60584.0,60583.0,1.52838468]
[1726646214923,0.004822,60584.0,60583.0,1.52838468]
[1726646215150,0.006822,60584.0,60583.0,1.52838468]
[1726646218009,0.03071439,60584.0,60583.0,1.52838468]
[1726646218255,0.03171439,60584.0,60583.0,1.52838468]
[1726646218483,0.03171439,60584.0,60583.0,1.42931067]
[1726646218711,0.02771439,60584.0,60583.0,1.52838468]
[1726646218952,0.02971439,60584.0,60583.0,1.52838468]
[1726646219173,0.02971439,60584.0,60583.0,1.19925968]
[1726646219389,0.02671439,60584.0,60583.0,1.19925968]
[1726646220065,0.02671439,60584.0,60583.0,1.10018567]
[1726646220322,0.02671439,60584.0,60583.0,1.19925968]
[1726646220540,0.02671439,60584.0,60583.0,0.86913468]
[1726646220764,0.02671439,60584.0,60583.0,1.19925968]
[1726646221010,0.02671439,60584.0,60583.0,0.86913468]
[1726646221739,0.12381439,60584.0,60583.0,0.21101136]
[1726646221982,0.12381439,60584.0,60583.0,0.11182]
[1726646222205,0.13135566,60584.0,60583.0,0.11182]
[1726646222661,0.13135566,60584.0,60583.0,0.11082]
[1726646223142,0.13135566,60584.0,60583.0,0.11182]
[1726646223143,0.14335566,60584.0,60583.0,0.11182]
[1726646223391,0.13146327,60584.0,60583.0,0.11282]
[1726646223617,0.13146327,60584.0,60583.0,0.11182]
[1726646223832,0.14546327,60584.0,60583.0,0.11282]
[1726646224533,0.13346327,60584.0,60583.0,0.11182]
[1726646224851,0.14546327,60584.0,60583.0,0.11282]
[1726646226674,0.17135714,60584.0,60583.0,0.11282]
[1726646226916,0.33641714,60584.0,60583.0,0.11282]
[1726646227460,0.17135714,60584.0,60583.0,0.11282]
[1726646227837,0.33641714,60584.0,60583.0,0.11282]
[1726646229419,0.66653714,60584.0,60583.0,0.11282]
[1726646231872,0.99665714,60584.0,60583.0,0.11282]
[1726646232571,1.32677714,60584.0,60583.0,0.08277974]
[1726646232804,1.38867023,60584.0,60583.0,0.08277974]
[1726646233018,1.82079023,60584.0,60583.0,0.08277974]
[1726646233673,1.97981322,60584.0,60583.0,0.08277974]
[1726646233906,1.97981322,60584.0,60578.0,0.001646]
[1726646233907,1.80393501,60579.0,60578.0,0.001646]
[1726646234194,1.94970315,60579.0,60578.0,0.001646]
[1726646234687,1.61955615,60579.0,60578.0,0.001646]
[1726646235264,1.63055615,60579.0,60578.0,0.002646]
[1726646235965,1.64255615,60579.0,60578.0,0.002646]
[1726646236228,1.63055615,60579.0,60578.0,0.002646]
[1726646236680,1.63055615,60579.0,60570.0,0.001646]
[1726646236681,0.827477,60571.0,60570.0,0.001646]
[1726646236897,1.52230029,60571.0,60570.0,0.001646]
[1726646237492,1.5482026,60571.0,60570.0,0.001646]
[1726646237977,1.8783936,60571.0,60570.0,0.001646]
[1726646238190,1.46112859,60571.0,60570.0,0.001646]
[1726646238406,1.5742026,60571.0,60570.0,0.001646]
[1726646238627,1.5762026,60571.0,60570.0,0.001646]
[1726646243427,1.54830029,60571.0,60570.0,0.001646]
[1726646243673,1.55030029,60571.0,60570.0,0.001646]
[1726646245675,1.54830029,60571.0,60570.0,0.001646]
[1726646245895,1.55030029,60571.0,60570.0,0.001646]
[1726646246642,1.57620396,60571.0,60570.0,0.001646]
[1726646248570,1.67620396,60571.0,60570.0,0.001646]
[1726646248790,2.00639496,60571.0,60570.0,0.001646]
[1726646249731,1.67620396,60571.0,60570.0,0.001646]
[1726646250394,2.00639496,60571.0,60570.0,0.001646]
[1726646251595,1.67620396,60571.0,60570.0,0.001646]
[1726646252374,1.57512995,60571.0,60570.0,0.001646]
[1726646253186,1.30957167,60571.0,60570.0,0.001646]
[1726646253405,1.283668,60571.0,60570.0,0.001646]
[1726646256688,1.30957268,60571.0,60570.0,0.001646]
[1726646260423,0.97938168,60571.0,60570.0,0.001646]
[1726646261168,0.21899968,60571.0,60570.0,0.001646]
[1726646261413,0.87938168,60571.0,60570.0,0.001646]
[1726646261867,0.523286,60571.0,60570.0,0.001646]
[1726646265186,0.853477,60571.0,60570.0,0.001646]
[1726646269287,0.8793807,60571.0,60570.0,0.001646]
[1726646269521,1.2095717,60571.0,60570.0,0.001646]
[1726646270000,0.8793807,60571.0,60570.0,0.001646]
[1726646270455,1.2095717,60571.0,60570.0,0.001646]
[1726646270929,1.2325717,60571.0,60570.0,0.001646]
[1726646273471,1.206668,60571.0,60570.0,0.001646]
[1726646273722,1.60541728,60571.0,60570.0,0.001646]
[1726646273998,1.83031728,60571.0,60570.0,0.001646]
[1726646274946,1.84003153,60571.0,60570.0,0.001646]
[1726646276948,1.93910554,60571.0,60570.0,0.001646]
[1726646280980,1.93710554,60571.0,60570.0,0.001646]
[1726646281210,1.93910554,60571.0,60570.0,0.001646]
[1726646283093,1.93710554,60571.0,60570.0,0.001646]
[1726646283579,1.93910554,60571.0,60570.0,0.001646]
[1726646286707,1.93710554,60571.0,60570.0,0.001646]
[1726646288488,1.93910554,60571.0,60570.0,0.001646]
[1726646295621,1.60891454,60571.0,60570.0,0.001646]
[1726646297997,1.63482064,60571.0,60570.0,0.001646]
[1726646301911,1.73375762,60571.0,60570.0,0.001646]
[1726646303509,1.70785152,60571.0,60570.0,0.001646]
[1726646303997,1.50216326,60571.0,60570.0,0.001646]
[1726646304234,1.40322628,60571.0,60570.0,0.001646]
[1726646304735,1.37322628,60571.0,60570.0,0.001646]
[1726646304987,1.50230029,60571.0,60570.0,0.001646]
[1726646305715,1.40322628,60571.0,60570.0,0.001646]
[1726646307595,0.976477,60571.0,60570.0,0.001646]
[1726646307820,0.646286,60571.0,60570.0,0.001646]
[1726646308044,0.67219186,60571.0,60570.0,0.001646]
[1726646308286,1.00238286,60571.0,60570.0,0.001646]
[1726646308767,0.67219186,60571.0,60570.0,0.001646]
[1726646308986,1.00238286,60571.0,60570.0,0.001646]
[1726646312308,1.00968525,60571.0,60570.0,0.001646]
[1726646313464,0.98377939,60571.0,60570.0,0.001646]
[1726646315399,0.65358839,60571.0,60570.0,0.001646]
[1726646315642,0.98377939,60571.0,60570.0,0.001646]
[1726646317979,1.00968371,60571.0,60570.0,0.001646]
[1726646323498,0.98377939,60571.0,60570.0,0.001646]
[1726646326665,1.00968371,60571.0,60570.0,0.001646]
[1726646331165,0.67949271,60571.0,60570.0,0.001646]
[1726646331841,0.98668371,60571.0,60570.0,0.001646]
[1726646333495,0.96077939,60571.0,60570.0,0.001646]
[1726646336126,1.0598534,60571.0,60570.0,0.001646]
[1726646336616,1.3900444,60571.0,60570.0,0.001646]
[1726646336839,1.0598534,60571.0,60570.0,0.001646]
[1726646337793,1.3900444,60571.0,60570.0,0.001646]
[1726646338070,1.40194854,60571.0,60570.0,0.001646]
[1726646338292,1.41594854,60571.0,60570.0,0.001646]
[1726646338525,1.41202373,60571.0,60570.0,0.001646]
[1726646338751,1.42602373,60571.0,60570.0,0.001646]
[1726646339431,1.41202373,60571.0,60570.0,0.001646]
[1726646339683,1.42602373,60571.0,60570.0,0.001646]
[1726646340093,1.41202373,60571.0,60570.0,0.001646]
[1726646340245,1.42602373,60571.0,60570.0,0.001646]
[1726646340876,1.41594854,60571.0,60570.0,0.001646]
[1726646342758,1.41794854,60571.0,60570.0,0.001646]
[1726646342982,1.41594854,60571.0,60570.0,0.001646]
[1726646343453,1.3900444,60571.0,60570.0,0.001646]
[1726646344717,1.7202354,60571.0,60570.0,0.001646]
[1726646344937,1.3920444,60571.0,60570.0,0.001646]
[1726646345157,1.7222354,60571.0,60570.0,0.001646]
[1726646345956,1.81179368,60571.0,60570.0,0.001646]
[1726646346206,1.93909368,60571.0,60570.0,0.001646]
[1726646346437,2.03804438,60571.0,60570.0,0.001646]
[1726646346901,2.06395001,60571.0,60570.0,0.001646]
[1726646347355,2.04995001,60571.0,60570.0,0.001646]
[1726646347598,2.06395001,60571.0,60570.0,0.001646]
[1726646348319,2.04995001,60571.0,60570.0,0.001646]
[1726646348556,2.06395001,60571.0,60570.0,0.001646]
[1726646349684,2.06397855,60571.0,60570.0,0.001646]
[1726646349950,1.96499931,60571.0,60570.0,0.001646]
[1726646353430,1.93909368,60571.0,60570.0,0.001646]
[1726646355961,1.84179368,60571.0,60570.0,0.001646]
[1726646357969,1.86769893,60571.0,60570.0,0.001646]
[1726646363525,1.84179368,60571.0,60570.0,0.001646]
[1726646367158,1.87179368,60571.0,60570.0,0.001646]
[1726646368093,1.8976992,60571.0,60570.0,0.001646]
[1726646370216,1.9942992,60571.0,60570.0,0.001646]
[1726646372452,2.3244902,60571.0,60570.0,0.001646]
[1726646372692,1.9942992,60571.0,60570.0,0.001646]
[1726646373152,2.3244902,60571.0,60570.0,0.001646]
[1726646373374,2.29858468,60571.0,60570.0,0.001646]
[1726646373587,1.96839368,60571.0,60570.0,0.001646]
[1726646374022,2.29858468,60571.0,60570.0,0.001646]
[1726646376806,2.32449248,60571.0,60570.0,0.001646]
[1726646377028,2.22541847,60571.0,60570.0,0.001646]
[1726646377482,2.32449248,60571.0,60570.0,0.001646]
[1726646381279,2.22541847,60571.0,60570.0,0.001646]
[1726646381513,2.32449248,60571.0,60570.0,0.001646]
[1726646383544,2.29858468,60571.0,60570.0,0.001646]
[1726646386857,2.32449217,60571.0,60570.0,0.001646]
[1726646390973,2.31049217,60571.0,60570.0,0.001646]
[1726646391431,2.32449217,60571.0,60570.0,0.001646]
[1726646391663,2.31049217,60571.0,60570.0,0.001646]
[1726646391936,2.29649217,60571.0,60570.0,0.001646]
[1726646392162,2.31049217,60571.0,60570.0,0.001646]
[1726646392404,2.32449217,60571.0,60570.0,0.001646]
[1726646392655,2.31049217,60571.0,60570.0,0.001646]
[1726646393151,2.32449217,60571.0,60570.0,0.001646]
[1726646393409,2.29858468,60571.0,60570.0,0.001646]
[1726646397310,2.28458468,60571.0,60570.0,0.001646]
[1726646397521,2.19951067,60571.0,60570.0,0.001646]
[1726646397741,2.29858468,60571.0,60570.0,0.001646]
[1726646398177,2.32449168,60571.0,60570.0,0.001646]
[1726646398392,2.31049168,60571.0,60570.0,0.001646]
[1726646398822,2.32449168,60571.0,60570.0,0.001646]
[1726646399846,1.99430068,60571.0,60570.0,0.001646]
[1726646400087,1.89770068,60571.0,60570.0,0.001646]
[1726646400323,1.89736068,60571.0,60570.0,0.001646]
[1726646401290,1.88336068,60571.0,60570.0,0.001646]
[1726646401516,1.89736068,60571.0,60570.0,0.001646]
[1726646401744,1.85745368,60571.0,60570.0,0.001646]
[1726646401968,1.87145368,60571.0,60570.0,0.001646]
[1726646402439,1.88545368,60571.0,60570.0,0.001646]
[1726646402674,1.85745368,60571.0,60570.0,0.001646]
[1726646403125,1.87145368,60571.0,60570.0,0.001646]
[1726646403366,1.77237967,60571.0,60570.0,0.001646]
[1726646403606,2.01993228,60571.0,60570.0,0.001646]
[1726646403839,2.11503228,60571.0,60570.0,0.001646]
[1726646404069,2.01993228,60571.0,60570.0,0.001646]
[1726646404300,2.03393228,60571.0,60570.0,0.001646]
[1726646404759,1.87145368,60571.0,60570.0,0.001646]
[1726646404988,2.20164468,60571.0,60570.0,0.001646]
[1726646405224,2.38414468,60571.0,60570.0,0.001646]
[1726646405456,1.37998701,60558.0,60557.0,0.001646]
[1726646405692,1.87756732,60558.0,60557.0,0.001646]
[1726646406169,1.47097954,60558.0,60557.0,0.001646]
[1726646406174,1.44631737,60558.0,60557.0,0.001646]
[1726646406401,1.44631737,60558.0,60544.0,0.001646]
[1726646406402,0.002,60552.0,60544.0,0.001646]
[1726646406639,0.330267,60557.0,60544.0,0.001646]
[1726646406641,0.597498,60545.0,60544.0,0.001646]
[1726646406896,1.35126522,60545.0,60544.0,0.001646]